Cogmind - Beta 14 @@@ ROGUE MODE // 2024.11.30 @ 18:43:48 Player: opdo Result: Destroyed by UV-EKI(R) with Subdweller Machine Gun Performance ------------- Evolutions (0) 0 Regions Visited (2) 400 Robots Destroyed (13) 65 Value Destroyed (299) 299 Prototype IDs (0) 0 Alien Tech Used (0) 0 Bonus (0) 0 TOTAL SCORE: 764 Bonus ------- None Cogmind --------- Core Integrity 0/250 Matter 284/300 Energy 82/100 System Corruption 0% Temperature Cool (0) Movement Core (50) Location -10/Subcaves Parts ------- > --- POWER (1) -------- (None) > --- PROPULSION (2) --- Subdweller Monowheel > --- UTILITY (2) ------ Subdweller Optics > --- WEAPON (2) ------- (None) > --- INVENTORY (5) ---- Assault Rifle Mining Laser Makeshift Sword Scrap Shield Fragment (41) Peak State ------------ > --- POWER ------------ Light Nuclear Core > --- PROPULSION ------- Wheel Subdweller Monowheel > --- UTILITY ---------- Scrap Shield > --- WEAPON ----------- Assault Rifle Light Assault Rifle > --- INVENTORY -------- Subdweller Optics Assault Rifle Mining Laser Makeshift Sword Scrap Shield Fragment [Rating: 13] Favorites ----------- Power Light Nuclear Core Engine Light Ion Engine Power Core Light Nuclear Core Propulsion Aluminum Leg Leg Aluminum Leg Wheel Subdweller Monowheel Utility Small Storage Unit Device Seismic Detector Storage Small Storage Unit Protection Scrap Shield Weapon Light Assault Rifle Ballistic Gun Light Assault Rifle Special Weapon Mining Laser Build | -11 -10 -10 ------- Run | Yrd Mat Sub Slots Evolved . | . . . Power . | . . . Propulsion . | . . . Utility . | . . . Weapon . | . . . Parts Attached 20 | 6 7 7 Power 2 | 1 1 . Engine 1 | 1 . . Core 1 | . 1 . Reactor . | . . . Propulsion 7 | 2 2 3 Treads . | . . . Leg 4 | 2 2 . Wheel 3 | . . 3 Hover . | . . . Flight . | . . . Utility 5 | 1 1 3 Device 2 | . 1 1 Storage 1 | 1 . . Processor . | . . . Hackware . | . . . Protection 2 | . . 2 Artifact . | . . . Weapon 6 | 2 3 1 Energy Gun . | . . . Energy Cannon . | . . . Ballistic Gun 5 | 2 2 1 Ballistic Cannon . | . . . Launcher . | . . . Special Weapon 1 | . 1 . Impact Weapon . | . . . Slashing Weapon . | . . . Piercing Weapon . | . . . Special Melee Weapon . | . . . Unidentified Prototypes . | . . . Parts Lost 5 | . . 5 Power 1 | . . 1 Propulsion 1 | . . 1 Utility 1 | . . 1 Weapon 2 | . . 2 Highest Loss Streak 5 | . . 5 To Critical Strikes . | . . . Average Slot Usage (%) 84 | . 87 82 Engine 1 | . 3 . Core 11 | . 10 12 Leg 18 | . 28 11 Wheel 9 | . . 15 Device 2 | . 2 2 Storage 7 | . 14 2 Protection 5 | . . 9 Ballistic Gun 26 | . 27 25 Peak Build Rating 13 | 6 9 13 Average Rating 8 | 5 7 10 On Entrance 5 | . 6 9 Naked Turns . | . . . Heaviest Build 26 | 10 14 26 Greatest Support 30 | 20 20 30 Greatest Overweight (x) 2 | 1 . 2 Average Overweight (x) . | . . . Largest Inventory Capacity 8 | 8 8 8 Average Capacity 6 | 7 8 5 Most Carried 8 | 4 8 8 Average Carried 6 | 3 7 5 Final Capacity 8 | 8 8 5 Final Carried 8 | 4 8 4 Class Distribution -------------------- 100% | Mutant Dominant Class ---------------- Mutant | -10/Materials Mutant | -10/Subcaves Resources | -11 -10 -10 ----------- Run | Yrd Mat Sub Matter Collected 560 | 189 213 158 Remotely . | . . . Salvage Created 387 | 43 260 84 Parts 22 | 2 15 5 Haulers Intercepted . | . . . Recyclers Shooed . | . . . Parts Field Recycled . | . . . Retrieved Matter . | . . . Parts Self-Destructed 14 | . . 14 Prevented . | . . . Kills | -11 -10 -10 ------- Run | Yrd Mat Sub Combat Hostiles Destroyed 10 | . 8 2 Guns 10 | . 8 2 Classes Destroyed 5 | 1 3 1 Tunneler 2 | 2 . . Watcher 1 | . 1 . Swarmer 4 | . 4 . Grunt 4 | . 4 . Subdweller 2 | . . 2 Best Kill Streak 4 | 1 4 1 Combat Bots Only 4 | . 4 1 Max Kills in Single Turn 1 | 1 1 1 Gunslinging . | . . . Exploded . | . . . Melee . | . . . Uniques/NPCs Destroyed . | . . . Combat | -11 -10 -10 -------- Run | Yrd Mat Sub Hostile Shots Fired 96 | . 62 34 Missed 30 | . 21 9 Damage Taken 1120 | . 405 715 Core 266 | . 117 149 Absorbed by Shields . | . . . Core Remaining (%) 100 | 100 . . Volleys Fired 72 | 19 36 17 Largest 2 | 2 2 2 Hottest 100 | 40 100 40 Shots Fired 143 | 38 71 34 Gun 142 | 38 70 34 Cannon . | . . . Launcher . | . . . Special 1 | . 1 . Kinetic 142 | 38 70 34 Thermal 1 | . 1 . Explosive . | . . . Electromagnetic . | . . . Robot Hit Streak 9 | 5 8 9 Robot Miss Streak 6 | 4 6 1 Penetration Max . | . . . Secondary Targets 2 | . 2 . Max Gunslinging Chain 1 | . 1 . Shots Hit Robots 87 | 22 37 28 Core Hits 32 | 6 18 8 Critical Kills . | . . . Critical Parts Destroyed . | . . . Critical Strikes . | . . . Melee Attacks . | . . . Impact . | . . . Slashing . | . . . Piercing . | . . . Sneak Attacks . | . . . Combat Hostiles . | . . . Follow-up Attacks . | . . . Damage Inflicted 834 | 181 373 280 Guns 830 | 181 369 280 Cannons . | . . . Explosions . | . . . Melee . | . . . Ramming 4 | . 4 . Kinetic 830 | 181 369 280 Thermal . | . . . Explosive . | . . . Electromagnetic . | . . . Impact . | . . . Slashing . | . . . Piercing . | . . . Highest Corruption . | . . . Average Corruption . | . . . Corruption Purged . | . . . Corruption Blocked . | . . . Overload Shots . | . . . Overflow Damage . | . . . Projectiles . | . . . Explosions . | . . . Melee . | . . . Knockbacks . | . . . Impact . | . . . Kinetic . | . . . Secondary . | . . . Self-Inflicted Damage . | . . . Shots . | . . . Rammed . | . . . Targets Rammed 2 | . 2 . Kicked 2 | . 2 . Crushed . | . . . Highest Temperature 28 | . 28 . Average Temperature 7 | . 7 . Received Heat Transfer 225 | . 123 102 Siege Activations . | . . . Robots Corrupted . | . . . Combat Hostiles . | . . . Parts Fried . | . . . Impact Corruptions . | . . . Robots Melted . | . . . Combat Hostiles . | . . . Parts Melted 2 | . . 2 Heat Transferred . | . . . Parts Sabotaged . | . . . Parts Stolen . | . . . Parts Stripped . | . . . Power Chain Reactions . | . . . Alert | -11 -10 -10 ------- Run | Yrd Mat Sub Peak Influence 237 | 10 237 . Initial 6 | . 6 . Average 60 | 2 75 . Maximum Alert Level 1 | . 1 . Low Security (%) 93 | 100 92 . Level 1 6 | . 7 . Level 2 . | . . . Level 3 . | . . . Level 4 . | . . . Level 5 . | . . . High Security . | . . . Max Security . | . . . Squads Dispatched 2 | . 2 . Investigation 1 | . 1 . Extermination . | . . . Reinforcement 1 | . 1 . Assault . | . . . Garrison . | . . . Intercept . | . . . Searches Triggered . | . . . Construction Impeded . | . . . Haulers Reinforced . | . . . Active Scanning Responses . | . . . Cargo Convoy Interrupts . | . . . Stealth | -11 -10 -10 --------- Run | Yrd Mat Sub Distress Signals 1 | . 1 . Communications Jammed . | . . . Distress Signals . | . . . Times Spotted 18 | . 13 5 Peak Tracking Total 5 | . 5 2 Tactical Retreats 2 | . 1 1 Traps | -11 -10 -10 ------- Run | Yrd Mat Sub Traps Triggered 1 | . 1 . Indirectly . | . . . Trap Hack Attempts . | . . . Triggered . | . . . Disarmed . | . . . Reprogrammed . | . . . Reused . | . . . Traps Extracted . | . . . Installed . | . . . Triggered . | . . . Machines | -11 -10 -10 ---------- Run | Yrd Mat Sub Machines Disabled . | . . . Max in Single Turn . | . . . Machines Repaired . | . . . Machines Dismantled . | . . . Machines Sabotaged . | . . . Overloaded Fab Kills . | . . . Hacking | -11 -10 -10 --------- Run | Yrd Mat Sub Machines Accessed 3 | . 3 . Terminals 3 | . 3 . Fabricators . | . . . Repair Stations . | . . . Recycling Units . | . . . Scanalyzers . | . . . Garrison Access . | . . . Total Hacks 10 | . 10 . Successful 3 | . 3 . Failed 7 | . 7 . Catastrophic 1 | . 1 . Database Lockouts . | . . . Manual 10 | . 10 . Terminals 10 | . 10 . Fabricators . | . . . Repair Stations . | . . . Recycling Units . | . . . Scanalyzers . | . . . Garrison Access . | . . . Terminal Hacks 2 | . 2 . Robot Analysis 1 | . 1 . Terminal Index 1 | . 1 . Fabricator Hacks . | . . . Repair Station Hacks . | . . . Recycling Unit Hacks . | . . . Scanalyzer . | . . . Garrison Access Hacks . | . . . Unauthorized Hacks 1 | . 1 . Terminals 1 | . 1 . Botnet 1 | . 1 . Fabricators . | . . . Repair Stations . | . . . Recycling Units . | . . . Scanalyzers . | . . . Garrison Access . | . . . Data Cores Recovered . | . . . Used . | . . . Hacking Detections 3 | . 3 . Full Trace Events . | . . . Feedback Events . | . . . Feedback Blocked . | . . . Robot Schematics Acquired . | . . . Robots Built . | . . . Authchips . | . . . Time . | . . . Total Robot Build Rating . | . . . Part Schematics Acquired . | . . . Parts Built . | . . . Authchips . | . . . Time . | . . . Total Part Build Rating . | . . . Parts Repaired . | . . . Time . | . . . Parts Recycled . | . . . Recycled Matter . | . . . Retrieved Matter . | . . . Retrieved Components . | . . . Parts Scanalyzed . | . . . Part Schematics Acquired . | . . . Parts Damaged . | . . . Bothacking | -11 -10 -10 ------------ Run | Yrd Mat Sub Used RIF Installer . | . . . Robots Hacked . | . . . Non-combat . | . . . Combat . | . . . Robot Hacks Applied . | . . . Relay Couplers Released . | . . . Fabnet Peak Effective % . | . . . Robots Rewired . | . . . Allies Hacked . | . . . Hacks Repelled . | . . . Allies | -11 -10 -10 -------- Run | Yrd Mat Sub Total Allies . | . . . Largest Group . | . . . Highest-Rated Group . | . . . Highest-Rated Ally . | . . . Total Orders . | . . . Ally Attacks . | . . . Total Damage . | . . . Kills . | . . . Allies Corrupted . | . . . Allies Melted . | . . . Intel | -11 -10 -10 ------- Run | Yrd Mat Sub Robot Analysis Total 1 | . 1 . Derelict Logs Recovered 1 | . . 1 Drone Launches . | . . . Drone Recoveries . | . . . Exploration | -11 -10 -10 ------------- Run | Yrd Mat Sub Turns Passed 1385 | 130 490 765 Spaces Moved 977 | 61 296 620 Core 9 | 8 . 1 Treads . | . . . Legs 539 | 53 296 190 Wheels 429 | . . 429 Hover . | . . . Flight . | . . . Fastest Speed 50 | 50 120 50 Average Speed 114 | 112 120 111 Slowest Speed 190 | 120 120 190 Overloaded Moves . | . . . Propulsion Burnouts . | . . . Robots Hopped . | . . . Cave-ins Triggered . | . . . Exploration Rate (%) 33 | 4 51 46 Regions Visited 2 Branch Regions 1 Pre-discovered Areas . | . . . Known Exits Taken . | . . . Unknown Exits Taken 2 | 1 1 . Scrap Searched 6 | . . 6 Spaces Dug . | . . . Terrain Destroyed . | . . . Melee . | . . . Projectile . | . . . AOE . | . . . Terrain Rammed . | . . . Walls Destroyed . | . . . Machines Disabled . | . . . Actions | -11 -10 -10 --------- Run | Yrd Mat Sub Total 1126 | 89 372 665 Wait 14 | . 13 1 Move 975 | 60 295 620 Hop . | . . . Pick Up 22 | 4 10 8 Fast Attach 9 | 6 1 2 Attach 1 | . . 1 Detach . | . . . Swap 10 | . 6 4 Drop 21 | . 9 12 Fire 72 | 19 36 17 Melee . | . . . Ram . | . . . Kick 2 | . 2 . Crush . | . . . Escape Stasis . | . . . Rewire . | . . . Trap . | . . . Miscellaneous . | . . . Route ------- -11/Scrapyard -10/Materials (discovered 3 exits: [*Mat] / [*Min] / [*Sub]) -10/Subcaves (discovered 1 exit: Mat) History --------- Turn | Location | Event 5 | -11/Scrapyard | Discovered new exit (range 16) 131 | -11/Scrapyard | Entered Materials 272 | -10/Materials | Discovered new exit (range 8) 303 | -10/Materials | Build established: Mutant 421 | -10/Materials | Discovered new exit (range 11) 616 | -10/Materials | Discovered new exit (range 3) 621 | -10/Materials | Entered Subcaves 628 | -10/Subcaves | Identified exit to Materials 735 | -10/Subcaves | Shifting Twisted Machinery released Sub. Beam Cannon 750 | -10/Subcaves | Disturbed a concealed Subdweller 752 | -10/Subcaves | Core integrity fell below 50% 1297 | -10/Subcaves | Shifting Twisted Machinery released Sub. Power Source 1322 | -10/Subcaves | Core integrity fell below 20% 1352 | -10/Subcaves | Lost 5 parts (1p1n1u2w) 1386 | -10/Subcaves | Destroyed by UV-EKI(R) with Subdweller Machine Gun Last Messages --------------- Acquired 10 matter. Acquired 4 matter. Sub. Monowheel shoots sparks and powers down. Dropped Broken Sub. Monowheel. 9I-XQN(u) tweaks Twisted Machinery. Acquired 11 matter. 4T-4B1(u) tweaks Twisted Machinery. Dropped Aluminum Leg. Acquired Mining Laser. Dropped Aluminum Leg. Acquired Scrap Shield Fragment. Subatomizers dissect the Aluminum Leg. Sub. Power Source falls loose from the Twisted Machinery. Scrap Shield destroyed. Assault Rifle destroyed. Lgt. Nuclear Core destroyed. Wheel destroyed. Lgt. Assault Rifle destroyed. Sub. Monowheel shoots sparks and powers down. Map ----- +----------------------------------------------------+ | ?????????????????????????????????????????????????? | | ?????????????????????????????????????????????????? | | ????????????????????????????????????????????&%??## | | ??????????????????????????????????????????? !!### | | ??????????????????????????????????????????# | | ??????????????????????????????????????????? | | ???????????????????????????????????????????? ? | | ????????????????????????????????????????????? ? | | ?????????????????????????????????????????????? # | | ???????????????????????????????????????????????# # | | ???????????????????????????????????????????????# | | ???????????????????????????????????????????????# | | ???????????????????????????????????????????????# | | ???????????????????????????????????????????????# | | ???????????????????????????????????????????????# | | ???????????????????????????????????????????##### | | ??????????????????????????????###????????### | | ????????????????????????????### ##???????# | | ????????????????????????????# #???????## ### | | ????????????????????????????# ##???????### #### | | ???????????????????####??????# #?????????# ### | | ??????????????????## ""#????## ###????#### ## | | ?????????????????## "" ##### # ##???# # | | ????????????????## "" ##### ## | | ????????????????# "" ## ## #? | | ???????????????????# @ ## # #? | | ???????????????????## #### #? | | ????????????????????# #??# #### #? | | ?????????????????? #??# #?## #? | | ???????????????? #?# #??## | | ??????????????# # "" ## ##???#### | | ????????????????## R"" #???????## | | ?????????????????## ###"""""""#????????#### | | ??????????????????# ???#""""""#???????????? | | ??????????????????#### ????"" #???????????? | | ?????????????????????# ????"" "???????????? | | ?????????????????????###"?????? "????????????? | | ???????????????????????##??????? #?????????????# | | ?????????????????????????????????????????????????? | | ?????????????????????????????????????????????????? | | ?????????????????????????????????????????????????? | | ?????????????????????????????????????????????????? | | ?????????????????????????????????????????????????? | | ?????????????????????????????????????????????????? | | ?????????????????????????????????????????????????? | | ?????????????????????????????????????????????????? | | ?????????????????????????????????????????????????? | | ?????????????????????????????????????????????????? | | ?????????????????????????????????????????????????? | | ?????????????????????????????????????????????????? | +----------------------------------------------------+ Best States ------------- Heat Dissipation 25 Energy Generation 14 Energy Capacity 160 Matter Stores 300 Matter Capacity 300 Sight Range 16 Terrain Scan Density 10 Armor Coverage 800 Evasion (%) 55 Item Schematics ----------------- None Robot Schematics ------------------ None Fabricated ------------ Nothing Alien Tech Used ----------------- None Achievements -------------- None Challenges ------------ None Game ------ Seed GuidedKineticModule Manual? 0 Play Time 00:10:11 Cumulative 60.8 hours Start 2024.11.30 @ 18:34:48 End 2024.11.30 @ 18:43:48 Sessions 1 Manual Loads 0 Difficulty Rogue Special Mode None Game No. 182 Rogue 180 Adventurer 2 Explorer 0 Win Type - Total 0 Types 0/0/0/0/0/0/0/0/0 Lore% 55 Gallery% 51 Achievement% 37 Wizard Run 0 Options --------- Layout 2 ASCII 0 Keyboard 0 Movement Arrows Keybinds 0 Fullscreen 2 Font 24/Smallcaps Map View 50x44 Zoom Use 0% Tactical HUD 0 Map Filters NONE Filters NONE Steam 1 RUN: 2797df53-b06c-4683-a218-f0309891613f